bitfinex/quotes_SOLUSD_20251116
["timestamp","ask_amount","ask_price","bid_price","bid_amount"]
[1763289905949,8.26,142.93,142.91,0.66000001]
[1763289908454,8.26,142.93,142.91,7.65727856]
[1763289908656,7.56672543,143.01,142.95,22.6512]
[1763289908862,8.26,143.0,142.98,1.693999]
[1763289909070,8.26,143.0,142.98,2.353999]
[1763289910067,8.26,143.0,142.98,9.34798417]
[1763289911968,9.78882769,143.04,142.98,9.34798417]
[1763289912172,8.26,143.03,142.98,9.34798417]
[1763289912473,8.26,143.03,142.98,23.074014]
[1763289912766,8.26,143.03,142.98,24.768013]
[1763289912949,8.26,143.03,142.98,47.419213]
[1763289913343,43.85592606,143.07,143.01,22.6512]
[1763289913344,21.20472606,143.07,143.01,22.6512]
[1763289913564,0.2,143.07,143.06,1.693999]
[1763289913763,0.2,143.07,143.05,23.3212]
[1763289914967,0.2,143.07,143.06,0.66]
[1763289916267,0.2,143.07,143.05,25.005199]
[1763289916875,0.2,143.07,143.06,0.66]
[1763289918492,0.2,143.07,143.06,9.34407309]
[1763289918867,0.2,143.07,143.06,26.12020618]
[1763289919086,0.2,143.07,143.06,48.77140618]
[1763289919802,0.2,143.07,143.06,57.03140618]
[1763289920385,0.2,143.07,143.04,0.66]
[1763289920663,1.693999,143.06,143.02,0.66]
[1763289920868,2.64412456,143.06,143.02,0.66]
[1763289921068,3.34412456,143.06,143.02,0.66]
[1763289921670,2.84412456,143.07,143.03,2.64412456]
[1763289921878,2.84412456,143.07,143.05,2.64412456]
[1763289921879,0.2,143.07,143.05,2.64412456]
[1763289922081,0.2,143.07,143.06,0.66]
[1763289923599,0.2,143.07,143.06,7.65007409]
[1763289923897,0.2,143.07,143.06,10.29419865]
[1763289925413,0.2,143.07,143.06,0.66]
[1763289926085,0.2,143.07,143.05,9.63456083]
[1763289926387,0.2,143.07,143.05,10.29456083]
[1763289926594,0.2,143.07,143.04,32.28623301]
[1763289926794,0.9,143.07,143.04,32.94623301]
[1763289926991,0.2,143.07,143.04,32.94623301]
[1763289927298,0.2,143.07,143.05,0.66]
[1763289929186,3.34412456,143.06,143.02,0.66]
[1763289929707,0.7,143.05,143.02,23.3112]
[1763289930403,0.7,143.05,143.02,30.30315371]
[1763289930789,10.33426434,143.06,143.02,30.30315371]
[1763289932498,7.69013978,143.06,143.02,30.30315371]
[1763289932701,7.69013978,143.06,143.03,0.66]
[1763289932702,0.7,143.06,143.03,0.66]
[1763289933090,3.34412456,143.06,143.02,32.94727827]
[1763289933391,10.33420221,143.06,143.02,30.30315371]
[1763289934104,10.33420221,143.06,143.03,0.66]
[1763289934278,2.64412456,143.05,143.02,29.64315371]
[1763289934478,2.64412456,143.05,143.02,23.3112]
[1763289934479,3.34412456,143.05,143.02,23.3112]
[1763289934678,2.64412456,143.05,143.02,23.3112]
[1763289936002,9.63469927,143.05,143.02,23.3112]
[1763289938207,6.99057471,143.05,143.03,0.66]
[1763289938510,31.33748225,143.06,143.03,0.66]
[1763289939792,8.26,143.05,143.03,0.66]
[1763289940205,8.26,143.05,143.02,30.30312132]
[1763289940899,8.26,143.05,143.02,23.3112]
[1763289941310,8.26,143.05,143.02,22.6512]
[1763289941491,8.26,143.05,143.03,0.66]
[1763289943614,8.26,143.05,143.02,32.28732257]
[1763289943913,8.98,143.05,143.02,32.93732257]
[1763289944417,8.26,143.05,143.02,32.93732257]
[1763289944788,8.26,143.05,143.03,0.65]
[1763289944994,8.26,143.05,143.03,7.64153409]
[1763289945811,14.00369082,143.07,143.04,3.29412456]
[1763289946009,14.00369082,143.07,143.05,3.29412456]
[1763289947216,14.00369082,143.07,143.06,0.65]
[1763289947796,14.00369082,143.07,143.05,9.63457388]
[1763289947997,14.00369082,143.07,143.06,0.65]
[1763289948413,14.00369082,143.07,143.06,3.29412456]
[1763289949204,14.00369082,143.07,143.06,7.64007409]
[1763289952301,14.00369082,143.07,143.05,6.99038783]
[1763289952501,14.00369082,143.07,143.05,7.64038783]
[1763289954828,14.00369082,143.07,143.05,0.65]
[1763289955927,11.62412456,143.06,143.03,22.6512]
[1763289956310,11.62412456,143.06,143.02,0.65]
[1763289956720,0.72,143.05,143.02,7.64183227]
[1763289957015,18.61441687,143.06,143.02,6.99183227]
[1763289957208,8.26,143.06,143.03,0.65]
[1763289957410,15.97013056,143.06,143.03,0.65]
[1763289958208,3.36412456,143.05,143.01,32.93774582]
[1763289958409,8.26,143.04,143.01,32.93774582]
[1763289959331,8.26,143.04,143.02,0.65]
[1763289959721,18.61539464,143.04,143.0,10.28695864]
[1763289959917,18.61539464,143.04,143.01,0.65]
[1763289960634,0.72,143.03,143.0,7.64283408]
[1763289960817,18.61539464,143.04,143.0,6.99283408]
[1763289961022,18.61539464,143.04,143.01,0.65]
[1763289961827,18.61539464,143.04,143.0,7.64283408]
[1763289962038,18.61539464,143.04,143.01,0.65]
[1763289962522,8.26,143.04,143.01,10.28655601]
[1763289962910,8.26,143.04,143.02,0.65]
[1763289963311,8.26,143.04,143.01,10.28655601]
[1763289963532,8.98,143.04,143.01,7.64243145]
[1763289963729,15.97105239,143.04,143.01,7.64243145]
[1763289963917,8.98,143.04,143.01,7.64243145]
[1763289964120,8.26,143.04,143.01,7.64243145]
[1763289964422,8.26,143.04,143.01,6.99243145]
[1763289964628,3.36412456,143.05,143.02,0.65]
[1763289964813,11.62412456,143.05,143.02,0.65]
[1763289966437,18.61478129,143.05,143.02,0.65]
[1763289967326,3.36412456,143.04,143.0,0.65]
[1763289967518,8.26,143.03,143.0,0.65]
[1763289967727,8.26,143.03,143.0,7.6428484]
[1763289967937,8.98,143.03,143.0,7.6428484]
[1763289968246,8.26,143.03,143.0,6.9928484]
[1763289968428,8.26,143.03,143.01,0.65]
[1763289968627,11.62412456,143.03,143.0,0.65]
[1763289969035,10.90412456,143.03,143.0,0.65]
[1763289970748,17.89575091,143.03,143.0,0.65]
[1763289970914,17.89575091,143.03,142.99,29.64454582]
[1763289971118,2.64412456,143.01,142.98,0.65]
[1763289971319,3.36412456,143.01,142.98,0.65]
[1763289971829,10.90412456,143.01,142.97,23.3012]
[1763289972028,2.64412456,142.99,142.95,7.6453916]
[1763289972337,10.90412456,142.99,142.96,0.65]
[1763289972642,11.62412456,142.99,142.96,0.65]
[1763289973340,10.90412456,142.99,142.95,30.3465916]
[1763289973542,11.55412456,142.99,142.96,0.7]
[1763289974045,18.54766139,142.99,142.95,29.6465916]
[1763289974250,18.54766139,142.99,142.95,30.3565916]
[1763289974751,2.64412456,142.97,142.93,7.7063879]
[1763289975049,2.64412456,142.96,142.93,0.71]
[1763289975220,2.64412456,142.95,142.93,0.71]
[1763289975639,8.26,142.95,142.93,0.71]
[1763289976847,8.26,142.95,142.93,7.70641486]
[1763289979520,2.64412456,142.96,142.93,7.70641486]
[1763289979521,2.64412456,143.01,142.96,22.6512]
[1763289979747,8.26,142.99,142.97,3.35412456]
[1763289979950,8.26,142.99,142.97,0.71]
[1763289981642,8.26,142.99,142.96,33.00006205]
[1763289982856,8.26,142.99,142.96,32.04947007]
[1763289983432,8.92,142.99,142.96,32.04947007]
[1763289984457,8.26,142.99,142.96,32.04947007]
[1763289984838,8.26,142.99,142.97,0.71]
[1763289985853,8.26,142.99,142.97,7.70426386]
[1763289986153,8.26,142.99,142.93,6.99635464]
[1763289986154,2.35353258,142.98,142.93,6.99635464]
[1763289986359,10.61353258,142.97,142.93,9.39988722]
[1763289986557,8.26,142.97,142.94,2.40353258]
[1763289986958,8.26,142.97,142.94,0.71]
[1763289987262,9.95353258,142.97,142.94,0.71]
[1763289987446,10.61353258,142.97,142.93,8.68988722]
[1763289987646,10.61353258,142.97,142.94,0.71]
[1763289987830,2.35353258,142.97,142.94,7.7059222]
[1763289988035,8.26,142.96,142.94,7.7059222]
[1763289988437,8.26,142.96,142.92,40.14282412]
[1763289988438,2.35353258,142.95,142.92,30.35793602]
[1763289988740,8.26,142.94,142.92,30.35793602]
[1763289988954,8.26,142.94,142.92,29.64793602]
[1763289989256,10.61353258,142.94,142.91,1e-08]
[1763289989464,10.61353258,142.94,142.91,0.71000001]
[1763289989666,10.61353258,142.94,142.91,23.36120001]
[1763289990146,9.95353258,142.94,142.91,30.35854987]
[1763289992876,1.69353258,142.92,142.91,1e-08]
[1763289993045,9.95353258,142.92,142.91,1e-08]
[1763289993247,10.61353258,142.92,142.91,1e-08]
[1763289994246,8.92,142.92,142.91,1e-08]
[1763289996380,10.61353258,142.92,142.91,1e-08]
[1763289997946,1.69353258,142.95,142.91,0.71000001]
[1763289998156,8.28,142.94,142.91,9.40073827]
[1763289998360,8.28,142.94,142.93,1.69353258]
[1763289998868,8.28,142.94,142.93,2.40353258]
[1763290000145,8.28,142.94,142.93,9.39996439]
[1763290002472,8.28,142.94,142.93,7.70643181]
[1763290004758,8.28,142.94,142.93,0.71]
[1763290004958,10.67353258,142.94,142.91,6.99737348]
[1763290005159,1.69353258,142.93,142.91,0.72000001]
[1763290005361,10.67353258,142.94,142.91,7.71739136]
[1763290005564,9.97353258,142.94,142.91,7.71739136]
[1763290007873,8.28,142.94,142.91,7.71739136]
[1763290013453,8.98,142.94,142.91,7.71739136]
[1763290014177,8.28,142.94,142.91,7.71739136]
[1763290014754,8.28,142.94,142.91,6.99739136]
[1763290014970,8.28,142.94,142.92,0.72]
[1763290017987,8.26,142.95,142.93,1.69353258]
[1763290018659,8.26,142.95,142.94,0.72]
[1763290022170,21.01649795,143.0,142.94,9.40947493]
[1763290022375,0.7,143.04,142.99,1.69353258]
[1763290022580,8.26,143.03,143.01,1.69353258]
[1763290022885,8.28,143.04,143.02,2.41353258]
[1763290023090,9.97353258,143.04,143.0,0.72]
[1763290023271,1.69353258,143.02,142.98,2.41353258]
[1763290023585,0.7,143.03,142.99,1.69353258]
[1763290023586,8.28,143.01,142.99,1.69353258]
[1763290023790,8.28,143.01,142.99,2.41353258]
[1763290024786,8.28,143.01,142.99,0.72]
[1763290025174,8.28,143.01,142.98,9.4074423]
[1763290025374,8.28,143.01,142.99,0.72]
[1763290026364,8.28,143.01,142.99,9.40702497]
[1763290026578,0.7,143.06,143.0,1.69353258]
[1763290026762,8.28,143.05,143.02,1.69353258]
[1763290027188,8.28,143.05,143.02,2.41353258]
[1763290027766,8.28,143.05,143.03,2.41353258]
[1763290028096,8.28,143.05,143.04,1.69353258]
[1763290028272,14.00369082,143.07,143.04,2.41353258]
[1763290028590,14.00369082,143.07,143.06,1.69353258]
[1763290028891,14.00369082,143.07,143.06,2.41353258]
[1763290029987,14.70369082,143.07,143.03,32.05615603]
[1763290030291,8.28,143.06,143.03,32.05615603]
[1763290030668,8.28,143.06,143.04,0.72]
[1763290030973,8.28,143.06,143.04,2.41353258]
[1763290031175,22.28369082,143.07,143.05,1.69353258]
[1763290031374,22.28369082,143.07,143.05,2.41353258]
[1763290032087,22.28369082,143.07,143.06,0.72]
[1763290032294,22.28369082,143.07,143.06,2.41353258]
[1763290032793,22.28369082,143.07,143.06,0.72]
[1763290034891,22.28369082,143.07,143.06,9.40360667]
[1763290035191,22.28369082,143.07,143.06,2.41353258]
[1763290035397,22.28369082,143.07,143.06,0.72]
[1763290038198,22.97369082,143.07,143.03,32.0359249]
[1763290038387,30.96695456,143.07,143.03,32.0359249]
[1763290038576,31.65695456,143.07,143.03,32.0359249]
[1763290038776,0.69,143.06,143.03,32.0359249]
[1763290039173,8.28,143.05,143.03,22.6512]
[1763290039392,8.28,143.05,143.03,23.3512]
[1763290040585,8.28,143.05,143.03,30.34265558]
[1763290040785,8.28,143.05,143.03,23.3512]
[1763290040989,8.28,143.05,143.03,0.7]
[1763290042277,2.38353258,143.04,143.0,0.7]
[1763290042475,10.64353258,143.03,143.0,0.7]
[1763290042714,10.64353258,143.03,142.98,2.39353258]
[1763290043007,0.69,143.02,142.98,3.34533068]
[1763290043180,8.28,143.01,142.99,0.7]
[1763290043585,8.28,143.01,142.99,3.34533068]
[1763290043778,17.3390215,143.07,143.01,22.6512]
[1763290044010,11.61533068,143.06,143.01,25.29653068]
[1763290044185,2.64533068,143.05,143.01,25.29653068]
[1763290044382,8.28,143.04,143.01,25.99653068]
[1763290044778,8.28,143.04,143.01,32.98856345]
[1763290047109,8.28,143.04,143.02,9.63730341]
[1763290049278,8.28,143.04,143.02,10.33730341]
[1763290051709,8.28,143.04,143.02,0.7]
[1763290051896,8.28,143.04,143.01,9.63778222]
[1763290052103,8.28,143.04,143.01,10.33778222]
[1763290052486,8.28,143.04,143.02,0.7]
[1763290054787,8.28,143.04,143.01,6.99245154]
[1763290054993,3.33533068,143.03,142.99,7.69348945]
[1763290055218,8.26,143.02,142.99,7.69348945]
[1763290055893,8.26,143.02,143.0,0.7]
[1763290056100,2.64533068,143.04,143.0,0.7]
[1763290056101,8.28,143.04,143.01,2.64533068]
[1763290056396,8.28,143.04,143.01,3.34533068]
[1763290056793,8.28,143.04,143.02,2.64533068]
[1763290057000,8.28,143.04,143.03,2.64533068]
[1763290057221,8.28,143.04,143.03,3.34533068]
[1763290058191,8.28,143.04,143.03,0.7]
[1763290058395,8.28,143.04,143.02,10.3371566]
[1763290062234,8.28,143.04,143.03,3.34533068]
[1763290063105,8.28,143.04,143.03,0.7]
[1763290064112,8.28,143.04,143.03,7.69154023]
[1763290065021,0.2,143.07,143.03,10.33687091]
[1763290065223,8.26,143.06,143.04,3.30533068]
[1763290065648,8.26,143.06,143.05,0.66]
[1763290065996,8.26,143.06,143.05,10.29589342]
[1763290066233,0.2,143.07,143.05,10.29589342]
[1763290066543,0.2,143.07,143.06,0.66]
[1763290066844,0.2,143.07,143.06,3.30533068]
[1763290067134,0.2,143.07,143.06,10.29540477]
[1763290071220,0.2,143.07,143.06,32.94660477]
[1763290071609,0.2,143.07,143.06,53.54771401]
[1763290079824,0.2,143.07,143.06,50.90238333]
[1763290080023,0.2,143.07,143.06,53.54771401]
[1763290095036,1e-08,143.07,143.06,40.6853417]
[1763290095444,1e-08,143.07,143.06,43.48401233]
[1763290100341,1e-08,143.07,143.06,30.89651401]
[1763290101569,1e-08,143.07,143.06,27.59118333]
[1763290101768,1e-08,143.07,143.06,30.23651401]
[1763290101972,1e-08,143.07,143.06,30.94651401]
[1763290102180,1e-08,143.07,143.06,53.59771401]
[1763290103479,1e-08,143.07,143.06,52.88771401]
[1763290103683,1e-08,143.07,143.06,32.28660477]
[1763290103869,1e-08,143.07,143.06,25.29653068]
[1763290104963,1e-08,143.07,143.06,24.34220514]
[1763290105376,1e-08,143.07,143.06,31.33227923]
[1763290108486,0.66000001,143.07,143.06,31.33227923]
[1763290108688,0.66000001,143.07,143.06,6.99007409]
[1763290109059,0.66000001,143.07,143.05,8.53237736]
[1763290110353,0.66000001,143.07,143.05,6.99037222]
[1763290110659,0.66000001,143.07,143.04,8.68188129]
[1763290113989,1e-08,143.07,143.06,1.69100514]
[1763290114388,1e-08,143.07,143.06,8.68107923]
[1763290114988,1e-08,143.07,143.06,9.39107923]
[1763290115993,1e-08,143.07,143.06,8.68107923]
[1763290118991,1e-08,143.07,143.05,0.71]
[1763290119170,1e-08,143.07,143.05,7.70021512]
[1763290119765,1e-08,143.07,143.05,6.99021512]
[1763290119967,1e-08,143.07,143.06,0.71]
[1763290120195,1e-08,143.07,143.06,1.69100514]
[1763290121490,1e-08,143.07,143.06,31.33227923]
[1763290121686,1e-08,143.07,143.06,32.04227923]
[1763290122187,0.66000001,143.07,143.06,22.6512]
[1763290122381,0.66000001,143.07,143.05,6.99045564]
[1763290122795,0.66000001,143.07,143.05,8.68146078]
[1763290123295,0.66000001,143.07,143.05,6.99045564]
[1763290125698,0.66000001,143.07,143.03,22.6512]
[1763290125898,2.35100515,143.07,143.03,29.64255388]
[1763290126276,0.66,143.06,143.03,29.64255388]
[1763290126598,0.66,143.06,143.03,31.33355902]
[1763290126774,0.66,143.06,143.03,29.64255388]
[1763290128493,8.92,143.06,143.03,29.64255388]
[1763290128693,0.66,143.05,143.03,29.64255388]
[1763290131687,0.66,143.05,143.03,31.33355902]
[1763290133280,8.26,143.06,143.03,32.01355902]
[1763290133584,8.92,143.06,143.03,32.01355902]
[1763290134276,8.92,143.06,143.03,31.33355902]
[1763290134694,8.26,143.06,143.03,31.33355902]
[1763290134891,0.66,143.05,143.03,29.64255388]
[1763290135094,1.69100514,143.04,142.99,1.69100514]
[1763290135285,10.61100514,143.03,142.98,9.36499031]
[1763290135808,0.66,143.02,142.98,9.36499031]
[1763290135981,2.35100514,143.02,142.98,9.36499031]
[1763290136312,2.35100514,143.02,142.97,31.33650041]
[1763290136606,0.66,143.01,142.98,0.68]
[1763290137711,0.66,143.01,142.99,6.99349604]
[1763290138006,0.66,143.01,142.98,6.99388781]
[1763290138816,0.66,143.01,142.98,9.36489295]
[1763290141110,38.48474629,143.05,143.0,1.69100514]
[1763290141111,0.66,143.05,143.0,1.69100514]
[1763290141294,0.66,143.05,143.02,1.69100514]
[1763290142002,7.65073058,143.05,143.01,0.68]
[1763290142203,1.69100514,143.04,142.99,1.69100514]
[1763290142519,9.95100514,143.03,142.99,6.99340582]
[1763290142812,10.61100514,143.03,142.99,6.99340582]
[1763290143009,0.66,143.02,142.99,6.99340582]
[1763290143185,2.35100514,143.02,142.99,6.99340582]
[1763290143384,2.35100514,143.02,142.98,32.01615267]
[1763290143587,2.35100514,143.01,142.97,1.69100514]
[1763290144016,8.92,143.0,142.95,22.6512]
[1763290144207,10.61100514,143.0,142.96,1.69100514]
[1763290144413,0.66,142.99,142.96,1.69100514]
[1763290145513,8.92,143.0,142.96,1.69100514]
[1763290145709,8.26,143.0,142.97,2.37100514]
[1763290146297,8.92,143.0,142.98,6.99398517]
[1763290147618,0.66,142.99,142.96,8.685658]
[1763290147918,0.66,142.99,142.96,9.365658]
[1763290148106,0.66,142.99,142.96,6.99465286]
[1763290149820,8.26,143.0,142.97,0.68]
[1763290150118,8.92,143.0,142.97,2.37100514]
[1763290150500,8.92,143.0,142.97,1.69100514]
[1763290150706,8.92,143.0,142.96,9.365658]
[1763290151821,8.26,143.0,142.98,1.69100514]
[1763290151999,8.26,143.02,142.99,1.69100514]
[1763290152198,8.26,143.02,142.99,0.68]
[1763290152417,8.92,143.02,142.98,1.69100514]
[1763290152717,0.66,143.01,142.98,1.69100514]
[1763290152918,0.66,143.01,142.99,6.99349604]
[1763290153624,8.92,143.02,142.99,6.99349604]
[1763290156628,8.92,143.02,142.99,7.66349604]
[1763290158336,8.92,143.02,142.99,6.99349604]
[1763290158337,8.94,143.02,142.99,6.99349604]
[1763290160032,8.94,143.02,142.99,7.66349604]
[1763290160710,10.63100514,143.02,142.99,7.66349604]
[1763290161310,8.94,143.02,142.99,7.66349604]
[1763290166539,8.94,143.02,142.99,9.35450118]
[1763290167044,8.26,143.02,142.99,9.63864631]
[1763290167258,8.26,143.02,143.0,3.31515027]
[1763290167627,8.26,143.02,143.01,0.67]
[1763290168235,8.26,143.02,143.0,3.31515027]
[1763290169145,8.26,143.02,143.0,10.30773815]
[1763290169352,8.26,143.02,143.0,7.66258788]
[1763290170747,8.94,143.02,143.0,6.99258788]
[1763290171248,8.26,143.02,143.0,0.67]
[1763290172537,8.26,143.02,143.0,7.66290171]
[1763290172924,10.90515027,143.02,142.99,6.99332272]
[1763290173245,0.68,143.01,142.99,6.99332272]
[1763290173951,11.58515027,143.02,142.99,6.99332272]
[1763290174162,11.58515027,143.02,142.99,7.66332272]
[1763290177373,8.94,143.02,142.99,7.66332272]
[1763290177560,11.58515027,143.02,142.99,7.66332272]
[1763290178759,10.90515027,143.02,142.99,6.99332272]
[1763290178941,11.58515027,143.02,142.99,6.99332272]
[1763290179632,8.94,143.02,142.99,7.66332272]
[1763290181551,11.58515027,143.02,142.99,7.66332272]
[1763290182057,10.90515027,143.02,142.99,6.99332272]
[1763290182360,11.58515027,143.02,142.99,7.66332272]
[1763290186762,8.94,143.02,142.99,7.66332272]
[1763290187663,8.94,143.02,142.99,10.30847299]
[1763290187867,104.2,143.04,143.01,2.64515027]
[1763290188043,104.2,143.04,143.02,2.64515027]
[1763290188460,104.2,143.04,143.02,3.32515027]
[1763290189166,15.91065785,143.05,143.02,0.68]
[1763290189840,15.91065785,143.05,143.02,3.32515027]
[1763290190868,3.30515027,143.04,143.0,7.67300699]
[1763290191062,8.26,143.03,143.0,7.67300699]
[1763290191566,8.26,143.03,143.01,0.68]
[1763290193154,8.26,143.03,143.01,7.67249986]
[1763290193772,8.26,143.03,143.02,0.68]
[1763290194366,8.26,143.03,143.01,6.99249986]
[1763290194667,8.26,143.03,143.01,7.67249986]
[1763290195260,8.26,143.03,143.01,0.68]
[1763290196573,8.26,143.03,143.01,7.6723969]
[1763290196976,8.26,143.03,143.01,6.9923969]
[1763290197179,8.26,143.03,143.02,0.68]
[1763290198784,8.26,143.03,143.01,10.31754717]
[1763290198962,8.26,143.03,143.02,3.32515027]
[1763290200975,8.26,143.03,143.02,10.31717935]
[1763290201473,8.26,143.05,143.02,10.31717935]
[1763290201658,13.5092976,143.06,143.04,2.64515027]
[1763290201852,13.5092976,143.06,143.05,0.68]
[1763290202857,14.1692976,143.06,143.03,3.32515027]
[1763290203057,22.4292976,143.06,143.03,7.67150723]
[1763290203557,21.7692976,143.06,143.04,0.68]
[1763290203878,21.7692976,143.06,143.03,9.6366575]
[1763290204181,25.07444787,143.06,143.03,7.67150723]
[1763290204957,24.41444787,143.06,143.03,0.68]
[1763290205163,25.07444787,143.06,143.03,0.68]
[1763290206853,22.4292976,143.06,143.03,0.68]
[1763290207372,21.7692976,143.06,143.03,10.31651505]
[1763290207582,21.7692976,143.06,143.04,2.64515027]
[1763290207877,21.7692976,143.06,143.04,3.32515027]
[1763290208081,21.7692976,143.06,143.05,3.32515027]
[1763290208260,13.5092976,143.06,143.05,3.32515027]
[1763290209180,13.5092976,143.06,143.05,10.31571301]
[1763290227796,13.5092976,143.06,143.05,10.29571301]
[1763290228495,13.5092976,143.06,143.04,22.6512]
[1763290228496,14.1892976,143.06,143.04,9.63599815]
[1763290228898,14.1892976,143.06,143.04,8.68253821]
[1763290229685,13.5092976,143.06,143.04,8.68253821]
[1763290229884,13.5092976,143.06,143.04,9.34253821]
[1763290233806,13.5092976,143.06,143.05,1.69169033]
[1763290238891,14.1892976,143.06,143.05,1.69169033]
[1763290239294,14.1892976,143.06,143.04,6.99084788]
[1763290239509,14.1892976,143.06,143.05,1.69169033]
[1763290239821,13.5092976,143.06,143.05,1.69169033]
[1763290240188,13.5092976,143.06,143.05,8.68225307]
[1763290242524,13.5092976,143.06,143.05,9.34225307]
[1763290243209,13.5092976,143.06,143.05,8.68225307]
[1763290244225,13.5092976,143.06,143.05,1.69169033]
[1763290244719,13.5092976,143.06,143.05,8.68225307]
[1763290245026,13.5092976,143.06,143.05,1.69169033]
[1763290245326,13.5092976,143.06,143.05,8.68225307]
[1763290248728,14.1792976,143.06,143.05,1.69169033]
[1763290249018,14.1792976,143.06,143.04,8.68269357]
[1763290250423,14.1792976,143.06,143.05,1.69169033]
[1763290251415,13.5092976,143.06,143.05,1.69169033]
[1763290252131,14.1792976,143.06,143.05,1.69169033]
[1763290255040,13.5092976,143.06,143.05,1.69169033]
[1763290256341,0.67000001,143.07,143.05,1.69169033]
[1763290257028,0.67000001,143.07,143.04,9.34269357]
[1763290260530,7.65972938,143.07,143.03,24.34289033]
[1763290260734,8.26,143.06,143.03,22.6512]
[1763290260923,0.67,143.05,143.03,22.6512]
[1763290261224,0.67,143.05,143.03,29.64269753]
[1763290261419,0.67,143.05,143.03,22.6512]
[1763290261617,8.26,143.06,143.03,29.64263511]
[1763290261848,8.26,143.06,143.03,30.30263511]
[1763290262051,0.67,143.05,143.03,30.30263511]
[1763290262249,0.67,143.05,143.03,31.99432544]
[1763290262559,8.26,143.06,143.04,1.69169033]
[1763290262962,8.93,143.06,143.04,1.69169033]
[1763290263137,8.93,143.06,143.03,31.99432544]
[1763290263644,0.67,143.05,143.03,24.34289033]
[1763290264361,8.26,143.06,143.04,1.69169033]
[1763290264661,8.26,143.06,143.05,1.69169033]
[1763290265160,8.26,143.06,143.04,2.35169033]
[1763290265540,8.26,143.06,143.04,9.34273733]
[1763290265737,0.67,143.05,143.04,6.991047]
[1763290265940,8.93,143.06,143.04,6.991047]
[1763290266149,8.26,143.06,143.04,6.991047]
[1763290266451,8.26,143.06,143.04,9.34273733]
[1763290267236,8.26,143.06,143.04,7.651047]
[1763290268230,8.26,143.06,143.05,2.35169033]
[1763290268442,13.52588452,143.07,143.05,2.35169033]
[1763290269047,13.52588452,143.07,143.05,0.66]
[1763290269249,14.19588452,143.07,143.04,26.82036596]
[1763290271630,13.52588452,143.07,143.05,2.35169033]
[1763290273161,13.52588452,143.07,143.06,6.99007409]
[1763290273452,13.52588452,143.07,143.06,8.68176442]
[1763290274055,13.52588452,143.07,143.06,6.99007409]
[1763290274557,13.52588452,143.07,143.05,8.68216135]
[1763290274749,0.72,143.06,143.05,6.99047102]
[1763290275060,14.24588452,143.07,143.05,6.99047102]
[1763290275268,13.52588452,143.07,143.05,6.99047102]
[1763290275447,13.52588452,143.07,143.05,7.71047102]
[1763290278370,13.52588452,143.07,143.05,9.40216135]
[1763290281957,13.52588452,143.07,143.06,9.40176442]
[1763290283387,13.52588452,143.07,143.06,7.71007409]
[1763290284280,13.52588452,143.07,143.06,6.99007409]
[1763290284577,13.52588452,143.07,143.06,7.71007409]
[1763290289256,13.52588452,143.07,143.06,10.3526788]
[1763290295685,13.52588452,143.07,143.06,7.71007409]
[1763290295870,13.52588452,143.07,143.06,10.3526788]
[1763290298984,13.52588452,143.07,143.06,2.64260471]
[1763290299189,14.24588452,143.07,143.04,33.86169399]
[1763290299366,0.72,143.06,143.04,9.63352582]
[1763290299559,13.52588452,143.07,143.04,9.63352582]
[1763290299990,14.24588452,143.07,143.04,10.35352582]
[1763290302391,14.24588452,143.07,143.04,7.71092111]
[1763290302689,14.24588452,143.07,143.04,10.35352582]
[1763290306004,14.24588452,143.07,143.05,9.6329925]
[1763290308092,14.24588452,143.07,143.05,10.3329925]
[1763290309070,13.52588452,143.07,143.06,2.64260471]
[1763290309396,13.52588452,143.07,143.05,7.69038779]
[1763290309601,13.52588452,143.07,143.06,2.64260471]
[1763290309971,13.52588452,143.07,143.06,9.6326788]
[1763290310479,13.52588452,143.07,143.06,10.3326788]
[1763290313981,13.52588452,143.07,143.06,9.6326788]